bitfinex/quotes_ETHUSD_20250106
["timestamp","ask_amount","ask_price","bid_price","bid_amount"]
[1736127769771,2.47845,3631.3,3630.5,0.07281038]
[1736127771025,2.47845,3631.3,3630.6,1.20260909]
[1736127771370,2.47845,3631.3,3630.7,0.07275767]
[1736127775178,2.47845,3631.3,3630.8,0.07274047]
[1736127775564,2.47845,3631.3,3630.4,1.98570909]
[1736127775732,2.47845,3631.3,3630.9,0.0727266]
[1736127775932,2.47845,3631.3,3630.5,0.21321593]
[1736127776283,2.47845,3631.3,3630.6,0.07276821]
[1736127777780,0.7744,3631.5,3630.7,0.8157]
[1736127777932,3.37472,3631.5,3630.7,0.8157]
[1736127778279,3.37472,3631.5,3630.8,0.07274047]
[1736127778831,0.8964,3631.5,3630.8,0.07274047]
[1736127779032,2.47838,3631.4,3630.8,0.07274047]
[1736127779364,2.47838,3631.4,3630.9,0.07259678]
[1736127779876,2.47838,3631.4,3630.7,0.8157]
[1736127780851,0.122,3631.5,3630.7,0.8157]
[1736127781072,0.122,3631.5,3630.7,1.26543591]
[1736127781283,0.122,3631.5,3630.8,0.07261065]
[1736127781585,2.60036,3631.5,3630.8,0.07261065]
[1736127783080,0.122,3631.5,3630.8,0.07261065]
[1736127783253,2.47838,3631.4,3630.8,0.07261065]
[1736127786882,0.122,3631.5,3630.8,0.07261065]
[1736127787188,2.60033,3631.5,3630.8,0.07261065]
[1736127788080,2.60033,3631.5,3630.8,0.32221065]
[1736127790583,2.47833,3631.5,3630.8,0.32221065]
[1736127792087,1.15459865,3631.7,3631.2,1.20260909]
[1736127792383,1.15459865,3631.7,3631.3,0.87817641]
[1736127794184,2.47797,3632.0,3631.3,0.87817641]
[1736127797075,1.20260909,3631.9,3631.3,0.87817641]
[1736127797277,3.68070909,3631.9,3631.3,0.87817641]
[1736127798237,2.47816,3631.8,3631.3,0.87817641]
[1736127798737,2.47798,3632.0,3631.3,0.87817641]
[1736127798941,1.15459865,3631.9,3631.3,0.87817641]
[1736127799110,3.63264865,3631.9,3631.3,0.87817641]
[1736127800398,2.47805,3631.9,3631.3,0.87817641]
[1736127800600,2.42805,3631.9,3631.3,0.87817641]
[1736127802801,2.47813,3631.8,3631.3,0.87817641]
[1736127807961,3.2464,3631.6,3631.3,0.07247641]
[1736127808361,3.2464,3631.6,3631.1,1.42978515]
[1736127808522,3.2464,3631.6,3631.0,2.19178515]
[1736127808920,3.2464,3631.6,3631.1,0.06950121]
[1736127810646,0.7681,3631.6,3631.1,0.06950121]
[1736127810823,1.15459865,3631.7,3631.1,0.06950121]
[1736127812463,3.24511,3631.8,3631.1,0.06950121]
[1736127812661,2.4782,3631.7,3631.1,0.06950121]
[1736127820946,2.00825587,3631.8,3631.1,0.06950121]
[1736127821436,3.27103,3631.7,3631.1,0.06950121]
[1736127822737,4.42562865,3631.7,3631.1,0.06950121]
[1736127823595,1.94739865,3631.7,3631.1,0.06950121]
[1736127823827,2.47826,3631.6,3631.1,0.06950121]
[1736127824702,3.63285865,3631.6,3631.1,0.06950121]
[1736127825840,2.47833,3631.5,3631.1,0.06950121]
[1736127826418,1.15459865,3631.6,3631.1,0.06950121]
[1736127826801,1.15459865,3631.6,3631.2,0.7926]
[1736127827000,1.15459865,3631.6,3631.2,0.86215215]
[1736127828047,3.75471865,3631.8,3631.2,0.86215215]
[1736127828246,4.90619656,3631.8,3631.2,0.86215215]
[1736127828553,4.9028826,3631.8,3631.2,0.86215215]
[1736127828961,1.15459865,3631.8,3631.2,0.86215215]
[1736127829162,1.15459865,3631.7,3631.2,0.86215215]
[1736127830355,1.15459865,3631.8,3631.2,0.86215215]
[1736127831328,4.27659865,3631.9,3631.3,0.95289098]
[1736127831655,4.15459865,3631.9,3631.5,0.8243]
[1736127832031,4.15459865,3631.9,3631.6,0.0694618]
[1736127832218,4.15459865,3631.9,3631.5,0.8243]
[1736127832416,4.15459865,3631.9,3631.7,0.06944794]
[1736127832766,4.15459865,3631.9,3631.5,0.8243]
[1736127833054,4.15459865,3631.9,3631.6,0.0694618]
[1736127833253,4.15459865,3631.9,3631.5,0.8243]
[1736127833460,4.15459865,3631.9,3631.7,0.06944794]
[1736127833663,4.15459865,3631.9,3631.5,0.8243]
[1736127834018,4.15459865,3631.9,3631.6,0.0694618]
[1736127834214,4.15459865,3631.9,3631.5,0.8243]
[1736127834553,4.15459865,3631.9,3631.7,0.06944794]
[1736127834729,4.15459865,3631.9,3631.6,0.0694618]
[1736127835119,4.15459865,3631.9,3631.5,0.8243]
[1736127835318,4.15459865,3631.9,3631.7,0.06944794]
[1736127835616,4.15459865,3631.9,3631.5,0.8243]
[1736127835617,4.15459865,3631.9,3631.8,0.06943407]
[1736127835844,4.15459865,3631.9,3631.5,0.8243]
[1736127836231,4.15459865,3631.9,3631.6,0.0694618]
[1736127836432,4.15459865,3631.9,3631.5,0.8243]
[1736127836647,4.15459865,3631.9,3631.7,0.06944794]
[1736127836957,4.15459865,3631.9,3631.5,0.8243]
[1736127837332,1.15459865,3631.8,3631.6,0.0694618]
[1736127837758,1.15459865,3631.8,3631.5,0.8243]
[1736127837920,1.15459865,3631.8,3631.7,0.06944794]
[1736127838121,1.15459865,3631.8,3631.6,0.0694618]
[1736127838348,1.15459865,3631.8,3631.7,0.06944794]
[1736127838753,1.15459865,3631.8,3631.5,0.8243]
[1736127838962,1.15459865,3631.8,3631.7,0.0693034]
[1736127839465,1.15459865,3632.0,3631.7,0.0693034]
[1736127840154,1.15459865,3632.0,3631.5,0.8243]
[1736127840356,1.15459865,3632.0,3631.8,0.06928954]
[1736127840685,1.15459865,3632.0,3631.5,0.8243]
[1736127840836,1.15459865,3632.0,3631.5,1.0221262]
[1736127841038,1.15459865,3632.0,3631.6,0.06931726]
[1736127841259,1.15459865,3632.0,3631.5,1.0221262]
[1736127841549,1.15459865,3632.0,3631.7,0.0693034]
[1736127841761,1.15459865,3632.0,3631.6,0.06931726]
[1736127841936,1.15459865,3632.0,3631.8,0.06928954]
[1736127842147,1.15459865,3632.0,3631.7,0.0693034]
[1736127842382,1.15459865,3632.0,3631.6,0.22454055]
[1736127842557,1.15459865,3632.0,3631.8,0.06928954]
[1736127842727,1.15459865,3632.0,3631.7,0.0693034]
[1736127842928,1.15459865,3632.0,3631.5,0.8243]
[1736127843123,1.15459865,3632.0,3631.8,0.06928954]
[1736127843344,1.15459865,3632.0,3631.5,1.0221262]
[1736127843768,1.15459865,3632.0,3631.6,0.06931726]
[1736127844042,1.15459865,3632.0,3631.5,1.0221262]
[1736127844274,1.15459865,3632.0,3631.7,0.0693034]
[1736127844459,1.15459865,3632.0,3631.5,0.8243]
[1736127844657,2.47806,3631.9,3631.8,0.06928954]
[1736127844864,2.47811,3631.8,3631.3,1.15396202]
[1736127845380,2.47811,3631.8,3631.4,0.06934499]
[1736127846097,3.63270865,3631.8,3631.4,0.06934499]
[1736127846446,3.63270865,3631.8,3631.2,0.7839]
[1736127846676,3.63270865,3631.8,3631.5,0.06933113]
[1736127846891,3.63270865,3631.8,3631.2,0.7839]
[1736127847092,3.63270865,3631.8,3631.6,0.06931726]
[1736127847381,3.63270865,3631.8,3631.2,0.7839]
[1736127847753,1.15459865,3631.8,3631.3,0.06935886]
[1736127847961,2.47824,3631.6,3631.2,0.7839]
[1736127848387,2.47824,3631.6,3631.3,0.06935886]
[1736127848564,2.47824,3631.6,3631.3,0.95318727]
[1736127849086,2.47824,3631.6,3631.4,0.06934499]
[1736127849282,2.47831,3631.5,3631.4,0.06934499]
[1736127849491,3.73416177,3631.5,3631.4,0.06934499]
[1736127850262,3.73416177,3631.5,3630.9,1.98056202]
[1736127850458,3.25061,3631.5,3631.4,0.06942472]
[1736127850823,3.25061,3631.5,3631.4,0.0694995]
[1736127851024,3.25061,3631.5,3630.9,0.8266]
[1736127851399,3.25061,3631.5,3631.0,0.06958986]
[1736127851986,1.15634777,3631.4,3631.0,0.06958986]
[1736127856807,1.15634777,3631.4,3631.0,0.30442976]
[1736127858024,1.15634777,3631.5,3631.0,0.30442976]
[1736127858934,1.15634777,3631.5,3631.1,0.7723]
[1736127859439,1.15634777,3631.5,3631.2,0.06730152]
[1736127860487,3.63445777,3631.8,3631.2,0.06730152]
[1736127861032,2.47818,3631.7,3631.2,0.06730152]
[1736127861648,3.63452777,3631.7,3631.2,0.06730152]
[1736127862789,1.15634777,3631.7,3631.2,0.06730152]
[1736127863479,1.15634777,3631.7,3631.2,0.29414494]
[1736127863682,3.63447777,3631.8,3631.2,0.29414494]
[1736127864092,3.63447777,3631.8,3631.2,0.06730152]
[1736127865992,1.15634777,3631.7,3631.2,0.06730152]
[1736127867140,3.63452777,3631.7,3631.2,0.06730152]
[1736127868444,1.15634777,3631.6,3631.2,0.06730152]
[1736127869394,3.63460777,3631.6,3631.2,0.06730152]
[1736127869650,3.2825,3631.4,3631.2,0.06730152]
[1736127869862,3.2825,3631.4,3630.8,1.0274]
[1736127870159,3.2825,3631.4,3631.3,0.0672079]
[1736127870308,3.2825,3631.4,3630.8,1.0274]
[1736127870736,0.8041,3631.4,3630.9,0.06726337]
[1736127870943,3.68125909,3631.0,3630.9,0.06726337]
[1736127871137,4.48535909,3631.0,3630.9,0.06726337]
[1736127871354,3.28275,3631.0,3630.9,0.06726337]
[1736127871958,4.43909777,3631.0,3630.9,0.06726337]
[1736127872315,4.43909777,3631.0,3630.8,0.2496]
[1736127872316,2.47872,3630.9,3630.8,0.2496]
[1736127872544,3.21432313,3630.9,3630.8,0.2496]
[1736127873965,4.36935259,3630.9,3630.8,0.2496]
[1736127874960,4.41693222,3630.9,3630.8,0.2496]
[1736127882646,3.68132909,3630.9,3630.8,0.2496]
[1736127885881,2.47872,3630.9,3630.8,0.2496]
[1736127886065,3.0,3631.0,3630.8,0.2496]
[1736127886382,2.47865,3631.0,3630.8,0.2496]
[1736127889380,2.47872,3630.9,3630.8,0.2496]
[1736127902001,1.15502946,3631.2,3630.9,0.82]
[1736127902361,1.15502946,3631.2,3631.1,0.82]
[1736127902980,1.15502946,3631.2,3631.1,0.8858145]
[1736127903494,3.68091909,3631.6,3631.1,0.8858145]
[1736127903714,1.20260909,3631.6,3631.1,0.8858145]
[1736127905730,2.47819,3631.7,3631.1,0.8858145]
[1736127905927,3.68079909,3631.7,3631.1,0.8858145]
[1736127908632,2.47825,3631.6,3631.1,0.8858145]
[1736127908917,1.20260909,3631.5,3631.1,0.8858145]
[1736127909085,2.47838,3631.4,3631.1,0.0658145]
[1736127909516,2.47838,3631.4,3631.2,0.06548651]
[1736127909733,2.47838,3631.4,3630.8,1.0563]
[1736127909937,2.47838,3631.4,3631.3,0.06547264]
[1736127910143,2.47838,3631.4,3630.9,0.36368749]
[1736127910352,2.47838,3631.4,3631.3,0.06547264]
[1736127910547,2.47838,3631.4,3631.0,0.8067]
[1736127910717,2.47838,3631.4,3631.3,0.06551751]
[1736127910895,2.47838,3631.4,3631.0,0.8067]
[1736127911102,2.47838,3631.4,3631.3,0.06551751]
[1736127911432,2.47838,3631.4,3631.0,0.8067]
[1736127911817,2.47838,3631.4,3631.1,0.06516627]
[1736127912153,1.20260909,3631.5,3631.0,0.8067]
[1736127912439,1.15502946,3631.7,3630.8,0.2496]
[1736127912440,1.20260909,3631.1,3630.8,0.2496]
[1736127912648,2.47868,3631.0,3630.8,0.2496]
[1736127914660,1.20260909,3631.1,3630.8,0.2496]
[1736127914808,3.68132909,3630.9,3630.8,0.2496]
[1736127915205,3.68119909,3631.1,3630.8,0.2496]
[1736127916253,2.47866,3631.0,3630.8,0.2496]
[1736127916407,0.48362985,3631.0,3630.8,0.2496]
[1736127916826,2.47865,3631.0,3630.9,0.06305934]
[1736127917344,2.47865,3631.0,3630.8,0.2496]
[1736127917818,1.27602946,3631.2,3630.9,0.8327]
[1736127918020,3.75457946,3631.2,3630.9,0.8327]
[1736127919042,2.59955,3631.2,3630.9,0.8327]
[1736127919303,1.15502946,3631.4,3630.9,0.8327]
[1736127919562,1.15502946,3631.4,3631.0,0.06273206]
[1736127919851,1.15502946,3631.4,3631.1,0.7821]
[1736127920014,1.15502946,3631.7,3631.1,0.7821]
[1736127920218,1.15502946,3631.7,3631.2,0.06270433]
[1736127921010,1.15502946,3631.7,3631.3,0.7821]
[1736127921470,2.35763855,3632.0,3631.3,0.7821]
[1736127921758,2.35763855,3632.0,3631.4,0.06266164]
[1736127922055,2.35763855,3632.0,3631.3,0.7821]
[1736127922354,4.83560855,3632.0,3631.4,0.06266164]
[1736127922583,3.68057909,3632.0,3631.4,0.06266164]
[1736127924741,3.63280946,3632.3,3631.5,0.7821]
[1736127924980,1.15502946,3632.3,3631.5,0.84474778]
[1736127925278,2.35763855,3632.3,3631.6,0.20473569]
[1736127925484,2.35763855,3632.3,3631.5,0.84474778]
[1736127925680,2.35763855,3632.3,3631.7,0.06239074]
[1736127925987,1.20260909,3632.3,3631.5,0.7821]
[1736127926179,1.20260909,3632.3,3631.8,0.06237688]
[1736127926355,1.20260909,3632.3,3631.5,0.7821]
[1736127926678,1.20260909,3632.3,3631.9,0.06236302]
[1736127926847,1.20260909,3632.3,3631.5,0.7821]
[1736127927250,1.20260909,3632.1,3631.6,0.0624046]
[1736127927767,1.20260909,3632.1,3631.7,0.06225118]
[1736127927975,1.20260909,3632.1,3631.5,0.7821]
[1736127928296,1.20260909,3632.1,3631.8,0.06223732]
[1736127928441,1.20260909,3632.1,3631.5,0.7821]
[1736127928785,1.20260909,3632.1,3631.6,0.06226505]
[1736127928937,1.20260909,3631.9,3631.6,0.06226505]
[1736127929135,1.20260909,3631.9,3631.5,0.7821]
[1736127929332,2.47797,3632.0,3631.7,0.06225118]
[1736127929553,1.20260909,3632.1,3631.5,0.7821]
[1736127929731,1.20260909,3632.1,3631.8,0.06223732]
[1736127929936,1.20260909,3632.1,3631.5,0.7821]
[1736127930153,1.20260909,3632.1,3631.9,0.06222346]
[1736127930390,1.20260909,3632.1,3631.5,0.7821]
[1736127930737,1.20260909,3632.1,3631.6,0.06226505]
[1736127930985,1.20260909,3632.1,3631.5,0.7821]
[1736127931190,1.20260909,3632.1,3631.7,0.06225118]
[1736127931332,1.20260909,3632.1,3631.6,0.06226505]
[1736127931537,1.20260909,3632.1,3631.5,0.7821]
[1736127931780,1.20260909,3632.1,3631.7,0.06225118]
[1736127932078,1.20260909,3632.1,3631.5,0.7821]
[1736127932283,1.20260909,3632.1,3631.8,0.06223732]
[1736127932448,1.20260909,3632.1,3631.5,0.7821]
[1736127932777,1.20260909,3632.1,3631.6,0.06199091]
[1736127932981,1.20260909,3632.1,3631.5,0.7821]
[1736127933137,1.20260909,3632.1,3631.7,0.06071705]
[1736127933340,1.20260909,3632.1,3631.5,0.7821]
[1736127933537,1.20260909,3632.1,3631.8,0.06070319]
[1736127933792,1.20260909,3632.1,3631.5,0.7821]
[1736127934156,1.20260909,3632.1,3631.6,0.06073091]
[1736127934353,1.20260909,3632.1,3631.5,0.7821]
[1736127934552,1.20260909,3632.1,3631.7,0.06071705]
[1736127934786,1.20260909,3632.1,3631.5,0.7821]
[1736127934978,1.20260909,3632.1,3631.8,0.06065834]
[1736127935171,1.20260909,3632.1,3631.5,0.7821]
[1736127935491,1.20260909,3632.1,3631.9,0.06064448]
[1736127935701,1.20260909,3632.1,3631.5,0.7821]
[1736127936198,1.20260909,3632.3,3631.5,0.7821]
[1736127936558,1.20260909,3632.3,3631.6,0.06068606]
[1736127937175,1.20260909,3632.3,3631.7,0.7685]
[1736127937355,1.20260909,3632.3,3631.7,0.8291722]
[1736127939362,3.68037909,3632.3,3631.7,0.8291722]
[1736127939558,1.20260909,3632.1,3631.7,0.8291722]
[1736127944487,1.20260909,3631.8,3631.7,0.8291722]
[1736127944924,1.20260909,3632.0,3631.7,0.7685]
[1736127945933,1.20260909,3632.0,3631.8,0.06059355]
[1736127946435,1.20260909,3632.0,3631.7,0.7685]
[1736127950534,1.20260909,3632.0,3631.0,0.8137]
[1736127950736,1.20260909,3632.0,3631.1,0.7929628]
[1736127950905,1.20260909,3632.0,3631.2,0.8137]
[1736127951242,1.20260909,3632.0,3631.3,0.06066287]
[1736127953549,2.47805,3631.9,3631.3,0.06066287]
[1736127953858,2.47828,3631.6,3631.3,0.06066287]
[1736127954203,2.47828,3631.6,3631.2,0.8137]
[1736127954403,2.47828,3631.6,3631.3,0.06066287]
[1736127954714,0.7852,3631.7,3630.9,1.42516926]
[1736127954915,0.7852,3631.7,3631.4,0.060649]
[1736127955249,0.7852,3631.7,3631.5,0.06063514]
[1736127955754,0.7852,3631.7,3631.0,0.7561]
[1736127956045,0.7852,3631.7,3631.1,0.0606906]
[1736127958236,1.20260909,3631.4,3631.1,0.0606906]
[1736127958754,1.20260909,3631.4,3630.8,1.67476926]
[1736127958944,1.20260909,3631.4,3631.2,0.0608711]
[1736127959112,1.20260909,3631.4,3630.8,1.67476926]
[1736127959313,1.20260909,3631.4,3631.3,0.06085724]
[1736127959513,2.47832,3631.5,3630.8,1.67476926]
[1736127959705,2.47832,3631.5,3631.3,0.06110146]
[1736127959907,2.47832,3631.5,3630.8,1.67476926]
[1736127960143,2.47832,3631.5,3630.9,0.35799313]
[1736127960549,3.26338,3631.7,3631.0,0.06114305]
[1736127960753,0.7852,3631.7,3631.1,0.7645]
[1736127961037,0.7852,3631.7,3631.2,0.06111532]
[1736127962031,1.20260909,3631.8,3631.2,0.06111532]
[1736127965353,2.35763855,3631.8,3631.2,0.06111532]
[1736127967486,1.15502946,3631.8,3631.2,0.06111532]
[1736127968157,3.40015385,3631.8,3631.2,0.06111532]
[1736127968393,2.02050909,3631.4,3631.2,0.06111532]
[1736127968696,2.47858,3631.1,3631.0,1.15396202]
[1736127968864,2.47858,3631.1,3630.8,1.98305682]
[1736127968865,3.29655,3631.0,3630.9,1.15396202]
[1736127969072,5.19692,3631.0,3630.9,1.15396202]
[1736127970065,6.99431091,3631.0,3630.9,1.15396202]
[1736127970366,2.47872,3630.9,3630.8,0.2496]
[1736127970568,4.49182909,3630.9,3630.8,0.2496]
[1736127971091,5.21553955,3630.9,3630.8,0.2496]
[1736127972214,3.28922,3630.9,3630.8,0.2496]
[1736127972363,3.68132909,3630.9,3630.8,0.2496]
[1736127973411,2.47872,3630.9,3630.8,0.2496]
[1736127975232,3.68132909,3630.9,3630.8,0.2496]
[1736127978734,4.43692909,3630.9,3630.8,0.2496]
[1736127978913,5.51035409,3630.9,3630.8,0.2496]
[1736127986237,9.06035409,3630.9,3630.8,1e-05]
[1736127988153,10.77460857,3630.9,3630.8,1e-05]
[1736127989037,9.06035409,3630.9,3630.8,1e-05]
[1736127991465,10.90939841,3630.9,3630.8,1e-05]
[1736127992865,10.33316445,3630.9,3630.8,1e-05]
[1736127993753,9.18135409,3630.9,3630.8,1e-05]
[1736127994548,9.18135409,3630.9,3628.5,3.63426202]
[1736127994549,4.373,3630.8,3629.2,0.8039]
[1736127994866,3.68241909,3629.3,3629.2,0.8039]
[1736127995015,2.47981,3629.3,3629.2,0.8039]
[1736127996255,2.47981,3629.3,3628.9,0.8089]
[1736127996852,0.121,3629.4,3628.9,0.8089]
[1736127997355,0.121,3629.4,3629.0,0.0500923]
[1736127998465,0.121,3629.4,3628.9,0.8089]
[1736127999965,2.60077,3629.4,3628.9,0.8089]
[1736128001233,0.381077,3629.4,3628.9,0.8089]
[1736128001438,2.47997,3629.1,3628.9,0.8089]
[1736128003242,0.55,3629.2,3627.9,0.7554]
[1736128003428,2.48016,3628.8,3628.1,0.7554]
[1736128003627,2.48016,3628.8,3628.2,0.04891304]
[1736128005073,2.48024,3628.7,3628.2,0.04891304]
[1736128005831,2.47692503,3628.7,3628.2,0.04891304]
[1736128007642,2.47692503,3628.7,3628.3,0.04889915]
[1736128007842,2.47692503,3628.7,3628.1,0.75431304]
[1736128008060,2.47692503,3628.7,3628.2,0.04728261]
[1736128008257,2.48029,3628.6,3628.2,0.04728261]
[1736128008773,0.3263025,3628.7,3628.2,0.04728261]
[1736128008948,2.48036,3628.5,3628.2,0.04728261]
[1736128009329,2.48036,3628.5,3628.1,0.75431304]
[1736128009535,2.4802,3628.8,3628.1,0.75431304]
[1736128009770,1.91142607,3629.7,3628.2,0.04728261]
[1736128010034,0.121,3629.6,3628.5,2.48036]
[1736128010288,0.121,3629.6,3628.6,0.04722706]
[1736128010575,0.121,3629.6,3628.7,0.8105]
[1736128011081,4.39096607,3629.7,3628.8,0.04719929]
[1736128011082,0.121,3629.5,3628.8,0.04719929]
[1736128011251,0.121,3629.5,3628.8,0.38100522]
[1736128011451,0.121,3629.5,3628.8,0.33380593]
[1736128017482,3.23362,3630.4,3628.9,0.8189]
[1736128017775,2.47909,3630.4,3629.2,0.7898]
[1736128017935,2.60022,3630.2,3629.2,0.7898]
[1736128018131,2.60022,3630.2,3629.3,0.04710491]
[1736128018981,2.60022,3630.2,3629.4,0.7725]
[1736128019506,2.60022,3630.2,3629.5,0.04707716]
[1736128020266,0.121,3630.1,3629.6,0.7588]
[1736128020477,1.15192607,3630.8,3629.7,0.0470494]
[1736128020672,0.121,3630.6,3629.9,0.7588]
[1736128021000,0.121,3630.6,3630.0,0.04700777]
[1736128021160,0.121,3630.6,3630.1,0.7884]
[1736128021557,0.121,3630.6,3630.2,0.04666062]
[1736128021762,0.121,3630.6,3630.1,0.7884]
[1736128022497,0.121,3630.6,3630.2,0.04666062]
[1736128023058,0.121,3630.6,3630.1,0.7884]
[1736128023263,0.4331,3630.6,3630.2,0.04666062]
[1736128023463,0.4331,3630.6,3630.1,0.7884]
[1736128023699,2.91204,3630.6,3630.2,0.04666062]
[1736128024212,2.91204,3630.6,3630.1,0.7884]
[1736128024414,2.59994,3630.6,3630.2,0.04666062]
[1736128024569,2.59994,3630.6,3630.1,0.7884]
[1736128024770,2.59994,3630.6,3630.2,0.0461067]
[1736128025091,2.59994,3630.6,3630.1,0.7884]
[1736128025601,2.59994,3630.6,3630.2,0.0461067]
[1736128025819,2.59994,3630.6,3630.1,0.7884]
[1736128026307,2.59994,3630.6,3630.2,0.04613164]
[1736128026500,0.121,3630.6,3630.2,0.04613164]
[1736128026710,0.121,3630.6,3629.8,0.8008]
[1736128026864,0.121,3630.6,3630.4,0.8008]
[1736128027500,1.15192607,3631.1,3630.4,0.8008]
[1736128027501,2.4788,3630.8,3630.4,0.8008]
[1736128027713,2.5998,3630.8,3630.5,0.04607506]
[1736128027912,2.5998,3630.8,3630.4,0.8008]
[1736128032019,0.55,3631.3,3630.4,0.8008]
[1736128032230,1.15192607,3631.4,3630.4,0.8008]
[1736128032231,0.121,3630.9,3630.4,0.8008]
[1736128032381,0.121,3631.0,3630.4,0.8008]
[1736128032579,0.121,3631.0,3630.5,0.81965033]
[1736128033003,0.121,3631.0,3630.5,0.7737]
[1736128033004,3.4443914,3631.0,3630.5,0.7737]
[1736128033218,3.4443914,3631.0,3629.5,0.7737]
[1736128033422,2.66809218,3630.7,3629.6,0.04607022]
[1736128033944,2.479,3630.5,3629.7,0.7737]
[1736128034227,0.121,3630.6,3629.7,0.7737]
[1736128034521,0.121,3630.7,3629.9,0.7737]
[1736128034684,0.121,3630.7,3630.1,0.7737]
[1736128034885,0.121,3630.7,3630.2,0.04601689]
[1736128035136,0.121,3630.7,3630.3,0.7737]
[1736128035489,0.121,3630.7,3630.4,0.04598915]
[1736128036285,2.47872,3631.0,3630.4,0.04598915]
[1736128036485,0.121,3630.9,3630.4,0.04598915]
[1736128036935,0.121,3630.9,3630.3,0.7737]
[1736128036936,2.59974,3630.9,3630.3,0.7737]
[1736128038538,0.121,3630.9,3630.3,0.7737]
[1736128038753,2.47858,3631.1,3630.3,0.7737]
[1736128039061,0.121,3630.9,3630.4,0.85687567]
[1736128039537,2.47849,3631.3,3630.4,0.85687567]
[1736128039861,0.121,3631.1,3630.4,0.8112]
[1736128040061,0.121,3631.1,3630.6,0.8112]
[1736128040351,0.121,3631.1,3630.7,0.04527489]
[1736128041206,0.121,3631.1,3630.6,0.8112]
[1736128041407,0.121,3631.1,3630.7,0.04527489]
[1736128041923,2.59961,3631.1,3630.7,0.04527489]
[1736128045611,5.14638218,3631.6,3630.7,0.04527489]
[1736128045811,2.47851,3631.3,3630.6,0.8112]
[1736128046264,0.89507822,3631.5,3630.6,0.8112]
[1736128046408,0.121,3631.2,3630.7,0.04521005]
[1736128046614,0.121,3631.2,3630.7,0.7935]
[1736128046835,0.121,3631.2,3630.8,0.04514132]
[1736128047041,0.121,3631.2,3630.9,0.7583]
[1736128047240,0.121,3631.2,3631.0,0.0450288]
[1736128047624,2.47818,3631.7,3631.1,0.7882]
[1736128047836,0.121,3631.6,3631.2,0.04500107]
[1736128048345,0.121,3631.6,3631.3,0.7539]
[1736128048748,0.121,3631.7,3631.3,0.7539]
[1736128049250,2.47806,3631.9,3631.5,0.7714]
[1736128049408,0.121,3632.0,3631.6,0.0445616]
[1736128049609,0.121,3632.0,3631.5,0.7714]
[1736128049833,0.121,3632.0,3631.6,0.0445616]
[1736128050149,0.121,3632.0,3631.7,0.7714]
[1736128050363,0.121,3632.0,3631.7,0.81594773]
[1736128050518,5.14594218,3632.2,3631.7,0.81594773]
[1736128050723,0.9504912,3632.6,3631.7,0.7714]
[1736128050724,5.14577218,3632.5,3631.7,0.7714]
[1736128050963,2.59873,3632.4,3631.8,0.04428957]
[1736128051143,2.59873,3632.4,3631.7,0.7714]
[1736128052561,2.59873,3632.4,3631.8,0.04428957]
[1736128052763,2.59873,3632.4,3631.9,0.7553]
[1736128053063,2.59873,3632.4,3632.0,0.04426185]
[1736128053862,2.47773,3632.4,3632.0,0.04426185]
[1736128055064,2.47773,3632.4,3631.9,0.7553]
[1736128059265,0.121,3632.5,3631.9,0.7553]
[1736128059481,2.47778,3632.3,3631.9,0.7553]
[1736128069351,2.75557712,3632.3,3631.9,0.7553]
[1736128069651,2.47778,3632.3,3631.9,0.7553]
[1736128075058,3.67985237,3632.3,3631.9,0.7553]
[1736128078030,3.80085237,3632.3,3631.9,0.7553]
[1736128079180,3.67999237,3632.1,3631.3,0.8203]
[1736128079678,3.67999237,3632.1,3631.5,0.7673]
[1736128079879,3.67999237,3632.1,3631.6,0.04360446]
[1736128080099,3.67999237,3632.1,3631.5,0.7673]
[1736128080296,3.67999237,3632.1,3631.7,0.0435906]
[1736128080495,3.67999237,3632.1,3631.5,0.7673]
[1736128080700,3.80085237,3632.3,3631.6,0.04360446]
[1736128080878,3.80085237,3632.3,3631.7,0.7673]
[1736128081081,3.80085237,3632.3,3631.8,0.04357674]
[1736128081278,3.80085237,3632.3,3631.7,0.7673]
[1736128082213,1.32307237,3632.3,3631.7,0.7673]
[1736128082704,1.32307237,3632.3,3631.8,0.04357674]
[1736128083004,1.32307237,3632.3,3631.7,0.7673]
[1736128083205,1.32307237,3632.3,3631.9,0.04356288]
[1736128083401,1.20207237,3632.1,3631.8,0.04357674]
[1736128083600,1.20207237,3632.1,3631.7,0.7673]
[1736128083801,1.20207237,3632.1,3631.9,0.04358281]
[1736128084040,1.20207237,3632.1,3631.8,0.04359667]
[1736128084202,1.20207237,3632.1,3631.7,0.7673]
[1736128084507,1.20207237,3632.1,3631.8,0.04359667]
[1736128084682,1.20207237,3632.1,3631.7,0.7673]
[1736128084884,1.32307237,3632.3,3631.8,0.04359667]
[1736128085205,1.32307237,3632.3,3631.7,0.7673]
[1736128085576,1.32307237,3632.3,3631.8,0.04361162]
[1736128086005,1.32307237,3632.3,3631.7,0.7673]
[1736128086414,1.32307237,3632.3,3631.8,0.04361162]
[1736128086788,1.32307237,3632.3,3631.7,0.7673]
[1736128087113,1.32307237,3632.3,3631.8,0.04361162]
[1736128087417,1.32307237,3632.3,3631.7,0.7673]
[1736128087717,1.32307237,3632.3,3631.8,0.04361162]
[1736128088011,1.32307237,3632.3,3631.7,0.7673]
[1736128088220,1.32307237,3632.3,3631.9,0.04359776]
[1736128088380,1.32307237,3632.3,3631.8,0.04361162]
[1736128088579,1.32307237,3632.3,3631.7,0.7673]
[1736128088775,1.32307237,3632.3,3631.9,0.04357285]
[1736128088975,1.32307237,3632.3,3631.8,0.04358671]
[1736128089170,1.32307237,3632.3,3631.7,0.7673]
[1736128089413,1.32307237,3632.3,3631.9,0.04357285]
[1736128089636,1.32307237,3632.3,3631.8,0.04358671]
[1736128089974,1.32307237,3632.3,3631.7,0.7673]
[1736128090234,1.32307237,3632.3,3631.9,0.04357285]
[1736128090382,1.32307237,3632.3,3631.8,0.04358671]
[1736128090580,1.32307237,3632.3,3631.7,0.7673]
[1736128090782,1.32307237,3632.3,3631.9,0.04357285]
[1736128091006,1.32307237,3632.3,3631.8,0.04358671]
[1736128091212,1.32307237,3632.3,3631.7,0.7673]
[1736128091380,1.32307237,3632.3,3631.9,0.04357285]
[1736128091580,1.32307237,3632.3,3631.8,0.04357674]
[1736128091781,1.32307237,3632.3,3631.7,0.7673]
[1736128092115,1.32307237,3632.3,3631.8,0.04357674]